Cogmind - Beta 12 @@@ ROGUE MODE // 2023.10.09 @ 15:44:51 Player: Figgis Result: Self-destructed Performance ------------- Evolutions (1) 500 Regions Visited (4) 800 Robots Destroyed (38) 190 Value Destroyed (1086) 1086 Prototype IDs (1) 20 Alien Tech Used (0) 0 Bonus (165) 165 TOTAL SCORE: 2761 Bonus ------- High Alert Combat Kills 79 Follower Combat Kills 86 Cogmind --------- Core Integrity 208/400 Matter 268/300 Energy 265/265 System Corruption 0% Temperature Cool (0) Movement Walking (120) Location -9/Mines Parts ------- > --- POWER (1) -------- Reinforced Ion Engine > --- PROPULSION (3) --- Aluminum Leg Aluminum Leg Improved Aluminum Leg > --- UTILITY (3) ------ Improved Heat Sink Small Storage Unit Visual Processing Unit > --- WEAPON (2) ------- Improved Assault Rifle Improved Light Cannon > --- INVENTORY (8) ---- Reinforced Ion Engine Reinforced Ion Engine Aluminum Leg Aluminum Leg Medium Armor Plating Medium Armor Plating Improved Assault Rifle Improved Light Cannon Peak State ------------ > --- POWER ------------ Light Nuclear Core > --- PROPULSION ------- Aluminum Leg Aluminum Leg Aluminum Leg > --- UTILITY ---------- Improved Heat Sink Small Storage Unit Visual Processing Unit > --- WEAPON ----------- Improved Assault Rifle Improved Light Cannon > --- INVENTORY -------- Ion Engine Light Nuclear Core Aluminum Leg Aluminum Leg Light Armor Plating Beam Rifle Improved Light Cannon [Rating: 18] Favorites ----------- Power Reinforced Ion Engine Engine Reinforced Ion Engine Power Core Light Nuclear Core Propulsion Aluminum Leg Leg Aluminum Leg Utility Small Storage Unit Device Improved Heat Sink Storage Small Storage Unit Processor Visual Processing Unit Weapon Improved Light Cannon Energy Gun Small Laser Ballistic Gun Improved Assault Rifle Ballistic Cannon Improved Light Cannon Build | -11 -10 -10 -9 -9 ------- Run | Jun Mat Min Mat Min Slots Evolved 2 | . . . 2 . Power . | . . . . . Propulsion 1 | . . . 1 . Utility 1 | . . . 1 . Weapon . | . . . . . Parts Attached 27 | 7 5 3 11 1 Power 4 | 1 1 1 1 . Engine 3 | 1 1 . 1 . Core 1 | . . 1 . . Reactor . | . . . . . Propulsion 10 | 2 . 2 5 1 Treads . | . . . . . Leg 10 | 2 . 2 5 1 Wheel . | . . . . . Hover . | . . . . . Flight . | . . . . . Utility 3 | 1 1 . 1 . Device 1 | . 1 . . . Storage 1 | 1 . . . . Processor 1 | . . . 1 . Hackware . | . . . . . Protection . | . . . . . Artifact . | . . . . . Weapon 10 | 3 3 . 4 . Energy Gun 1 | 1 . . . . Energy Cannon . | . . . . . Ballistic Gun 4 | 2 . . 2 . Ballistic Cannon 5 | . 3 . 2 . Launcher . | . . . . . Special Weapon . | . . . . . Impact Weapon . | . . . . . Slashing Weapon . | . . . . . Piercing Weapon . | . . . . . Special Melee Weapon . | . . . . . Unidentified Prototypes 1 | . . . 1 . Parts Lost . | . . . . . Power . | . . . . . Propulsion . | . . . . . Utility . | . . . . . Weapon . | . . . . . Highest Loss Streak . | . . . . . To Critical Strikes . | . . . . . Average Slot Usage (%) 98 | . 94 100 99 100 Engine 9 | . 14 10 5 11 Core 2 | . . 3 5 . Leg 30 | . 28 28 33 33 Device 11 | . 10 14 11 11 Storage 12 | . 14 14 11 11 Processor 6 | . . . 10 11 Ballistic Gun 6 | . 6 . 8 11 Ballistic Cannon 17 | . 21 28 13 11 Naked Turns . | . . . . . Heaviest Build 23 | 11 19 19 23 23 Greatest Support 33 | 20 20 20 33 33 Greatest Overweight (x) 3 | 3 . 1 . . Average Overweight (x) . | . . . . . Largest Inventory Capacity 8 | 8 8 8 8 8 Average Capacity 7 | 7 8 8 8 8 Most Carried 8 | 3 8 8 8 8 Average Carried 7 | 1 7 8 7 8 Final Capacity 8 | 8 8 8 8 8 Final Carried 8 | 2 8 8 8 8 Class Distribution -------------------- 64% | Mutant 35% | Scavenger-Mutant Dominant Class ---------------- Mutant | -10/Materials Mutant | -10/Mines Scavenger-Mutant | -9/Materials Mutant | -9/Mines Resources | -11 -10 -10 -9 -9 ----------- Run | Jun Mat Min Mat Min Matter Collected 1128 | 155 261 238 433 41 Remotely . | . . . . . Salvage Created 1094 | . 306 57 677 54 Parts 77 | . 25 8 42 2 Haulers Intercepted 2 | . . . 2 . Recyclers Shooed 1 | . 1 . . . Parts Field Recycled . | . . . . . Retrieved Matter . | . . . . . Parts Self-Destructed . | . . . . . Prevented . | . . . . . Kills | -11 -10 -10 -9 -9 ------- Run | Jun Mat Min Mat Min Combat Hostiles Destroyed 30 | . 11 4 13 2 Guns 6 | . 1 . 5 . Cannons 24 | . 10 4 8 2 Classes Destroyed 8 | . 4 . 4 . Worker 1 | . . . 1 . Hauler 2 | . . . 2 . Recycler 2 | . 1 . 1 . Watcher 3 | . 2 . 1 . Swarmer 6 | . 3 3 . . Grunt 19 | . 8 1 8 2 Duelist 1 | . . . 1 . Sentry 4 | . . . 4 . Best Kill Streak 4 | . 4 3 3 2 Combat Bots Only 3 | . 3 3 3 2 Max Kills in Single Turn 2 | . 1 1 2 1 Gunslinging . | . . . . . Exploded . | . . . . . Melee . | . . . . . Uniques/NPCs Destroyed . | . . . . . Combat | -11 -10 -10 -9 -9 -------- Run | Jun Mat Min Mat Min Damage Taken 1346 | . 533 59 324 430 Core 284 | . 81 11 79 113 Absorbed by Shields . | . . . . . Core Remaining (%) 81 | 100 . 63 . . Volleys Fired 93 | . 40 7 37 9 Largest 2 | . 2 2 2 2 Hottest 78 | . 78 78 78 62 Shots Fired 185 | . 79 14 74 18 Gun 50 | . 22 . 19 9 Cannon 135 | . 57 14 55 9 Launcher . | . . . . . Special . | . . . . . Kinetic 185 | . 79 14 74 18 Thermal . | . . . . . Explosive . | . . . . . Electromagnetic . | . . . . . Robot Hit Streak 15 | . 5 3 9 15 Robot Miss Streak 4 | . 4 3 3 1 Penetration Max . | . . . . . Secondary Targets . | . . . . . Shots Hit Robots 105 | . 39 6 44 16 Core Hits 47 | . 18 4 22 3 Critical Kills 1 | . . . 1 . Critical Parts Destroyed . | . . . . . Critical Strikes 6 | . 3 . 1 2 Destroy 1 | . . . 1 . Blast 5 | . 3 . . 2 Melee Attacks . | . . . . . Impact . | . . . . . Slashing . | . . . . . Piercing . | . . . . . Sneak Attacks . | . . . . . Combat Hostiles . | . . . . . Follow-up Attacks . | . . . . . Damage Inflicted 2167 | . 767 156 951 293 Guns 441 | . 138 . 197 106 Cannons 1723 | . 626 156 754 187 Explosions . | . . . . . Melee . | . . . . . Ramming 3 | . 3 . . . Kinetic 2164 | . 764 156 951 293 Thermal . | . . . . . Explosive . | . . . . . Electromagnetic . | . . . . . Impact . | . . . . . Slashing . | . . . . . Piercing . | . . . . . Highest Corruption 1 | . 1 1 . . Average Corruption 1 | . 1 1 . . Corruption Purged . | . . . . . Corruption Blocked . | . . . . . Effects 7 | . 3 4 . . Message Errors 2 | . 1 1 . . Matter Fused 1 | . 1 . . . Heat Flow Errors 2 | . . 2 . . Energy Discharges 1 | . . 1 . . Weapon Failures 1 | . 1 . . . Overload Shots . | . . . . . Overflow Damage 2 | . . . 2 . Projectiles 2 | . . . 2 . Explosions . | . . . . . Melee . | . . . . . Knockbacks 19 | . 8 1 8 2 Impact . | . . . . . Kinetic 19 | . 8 1 8 2 Secondary . | . . . . . Self-Inflicted Damage . | . . . . . Shots . | . . . . . Rammed . | . . . . . Targets Rammed 1 | . 1 . . . Kicked 1 | . 1 . . . Crushed . | . . . . . Highest Temperature 102 | . 31 102 . 2 Average Temperature 16 | . 9 51 . 2 Received Heat Transfer 573 | . 288 12 129 144 Siege Activations . | . . . . . Robots Corrupted . | . . . . . Combat Hostiles . | . . . . . Parts Fried . | . . . . . Impact Corruptions . | . . . . . Robots Melted . | . . . . . Combat Hostiles . | . . . . . Parts Melted . | . . . . . Heat Transferred . | . . . . . Parts Sabotaged . | . . . . . Parts Stolen . | . . . . . Parts Stripped . | . . . . . Power Chain Reactions . | . . . . . Missiles Intercepted . | . . . . . Alert | -11 -10 -10 -9 -9 ------- Run | Jun Mat Min Mat Min Peak Influence 555 | . 270 176 555 212 Initial 162 | . . 60 68 162 Average 248 | . 153 102 374 193 Maximum Alert Level 2 | . 1 . 2 1 Low Security (%) 48 | 100 78 100 14 39 Level 1 22 | . 21 . 22 60 Level 2 29 | . . . 62 . Level 3 . | . . . . . Level 4 . | . . . . . Level 5 . | . . . . . High Security . | . . . . . Max Security . | . . . . . Squads Dispatched 3 | . 2 . 1 . Investigation 1 | . 1 . . . Extermination . | . . . . . Reinforcement 2 | . 1 . 1 . Assault . | . . . . . Garrison . | . . . . . Intercept . | . . . . . Searches Triggered . | . . . . . Construction Impeded . | . . . . . Haulers Reinforced . | . . . . . Active Scanning Responses . | . . . . . Cargo Convoy Interrupts . | . . . . . Stealth | -11 -10 -10 -9 -9 --------- Run | Jun Mat Min Mat Min Distress Signals 3 | . 2 . 1 . Communications Jammed . | . . . . . Distress Signals . | . . . . . Times Spotted 58 | . 18 6 23 11 Peak Tracking Total 9 | . 3 3 7 9 Tactical Retreats 1 | . . 1 . . Traps | -11 -10 -10 -9 -9 ------- Run | Jun Mat Min Mat Min Traps Triggered 1 | . 1 . . . Indirectly . | . . . . . Trap Hack Attempts . | . . . . . Triggered . | . . . . . Disarmed . | . . . . . Reprogrammed . | . . . . . Reused . | . . . . . Traps Extracted . | . . . . . Installed . | . . . . . Triggered . | . . . . . Machines | -11 -10 -10 -9 -9 ---------- Run | Jun Mat Min Mat Min Machines Disabled 1 | . . . 1 . Max in Single Turn 1 | . . . 1 . Machines Repaired . | . . . . . Machines Sabotaged . | . . . . . Overloaded Fab Kills . | . . . . . Hacking | -11 -10 -10 -9 -9 --------- Run | Jun Mat Min Mat Min Machines Accessed 9 | . 4 . 5 . Terminals 9 | . 4 . 5 . Fabricators . | . . . . . Repair Stations . | . . . . . Recycling Units . | . . . . . Scanalyzers . | . . . . . Garrison Access . | . . . . . Total Hacks 19 | . 10 . 9 . Successful 7 | . 4 . 3 . Failed 12 | . 6 . 6 . Catastrophic 5 | . 2 . 3 . Database Lockouts . | . . . . . Manual 21 | . 11 . 10 . Terminals 19 | . 10 . 9 . Fabricators . | . . . . . Repair Stations . | . . . . . Recycling Units . | . . . . . Scanalyzers . | . . . . . Garrison Access . | . . . . . Terminal Hacks 7 | . 4 . 3 . Robot Analysis 5 | . 3 . 2 . Branch Access Points 2 | . 1 . 1 . Fabricator Hacks . | . . . . . Repair Station Hacks . | . . . . . Recycling Unit Hacks . | . . . . . Scanalyzer . | . . . . . Garrison Access Hacks . | . . . . . Unauthorized Hacks . | . . . . . Terminals . | . . . . . Fabricators . | . . . . . Repair Stations . | . . . . . Recycling Units . | . . . . . Scanalyzers . | . . . . . Garrison Access . | . . . . . Data Cores Recovered . | . . . . . Used . | . . . . . Hacking Detections 9 | . 4 . 5 . Full Trace Events 2 | . 1 . 1 . Feedback Events . | . . . . . Feedback Blocked . | . . . . . Robot Schematics Acquired . | . . . . . Robots Built . | . . . . . Authchips . | . . . . . Time . | . . . . . Total Robot Build Rating . | . . . . . Part Schematics Acquired . | . . . . . Parts Built . | . . . . . Authchips . | . . . . . Time . | . . . . . Total Part Build Rating . | . . . . . Parts Repaired . | . . . . . Time . | . . . . . Parts Recycled . | . . . . . Recycled Matter . | . . . . . Retrieved Matter . | . . . . . Retrieved Components . | . . . . . Parts Scanalyzed . | . . . . . Part Schematics Acquired . | . . . . . Parts Damaged . | . . . . . Bothacking | -11 -10 -10 -9 -9 ------------ Run | Jun Mat Min Mat Min Used RIF Installer . | . . . . . Robots Hacked . | . . . . . Non-combat . | . . . . . Combat . | . . . . . Robot Hacks Applied . | . . . . . Relay Couplers Released . | . . . . . Fabnet Peak Effective % . | . . . . . Robots Rewired . | . . . . . Allies Hacked . | . . . . . Hacks Repelled . | . . . . . Allies | -11 -10 -10 -9 -9 -------- Run | Jun Mat Min Mat Min Total Allies 1 | . . 1 . . Largest Group 1 | . . 1 1 . Highest-Rated Group 31 | . . 31 31 . Highest-Rated Ally 31 | . . 31 31 . Total Orders . | . . . . . Ally Attacks 16 | . . . 16 . Total Damage 250 | . . . 250 . Kills 6 | . . . 6 . Allies Corrupted . | . . . . . Allies Melted . | . . . . . Intel | -11 -10 -10 -9 -9 ------- Run | Jun Mat Min Mat Min Robot Analysis Total 4 | . 3 . 1 . Derelict Logs Recovered 1 | . . . . 1 Drone Launches . | . . . . . Drone Recoveries . | . . . . . Exploration | -11 -10 -10 -9 -9 ------------- Run | Jun Mat Min Mat Min Turns Passed 2184 | 56 556 317 1012 243 Spaces Moved 1463 | 33 322 231 702 175 Core 16 | 16 . . . . Treads . | . . . . . Legs 1447 | 17 322 231 702 175 Wheels . | . . . . . Hover . | . . . . . Flight . | . . . . . Fastest Speed 50 | 50 120 120 120 120 Average Speed 120 | 125 120 120 120 120 Slowest Speed 200 | 200 120 190 120 120 Overloaded Moves . | . . . . . Propulsion Burnouts . | . . . . . Robots Hopped . | . . . . . Cave-ins Triggered . | . . . . . Exploration Rate (%) 44 | 4 60 53 62 42 Regions Visited 4 Branch Regions 2 Pre-discovered Areas 1 | . . 1 . . Known Exits Taken 2 | . 1 . 1 . Unknown Exits Taken 2 | 1 . 1 . . Scrap Searched 1 | . . . . 1 Spaces Dug . | . . . . . Terrain Destroyed 5 | . 2 1 2 . Melee . | . . . . . Projectile 5 | . 2 1 2 . AOE . | . . . . . Terrain Rammed . | . . . . . Walls Destroyed . | . . . . . Machines Disabled . | . . . . . Actions | -11 -10 -10 -9 -9 --------- Run | Jun Mat Min Mat Min Total 1711 | 47 414 257 803 190 Wait 78 | . 30 14 30 4 Move 1459 | 32 321 230 701 175 Hop . | . . . . . Pick Up 29 | 8 11 . 10 . Fast Attach 2 | . 1 . 1 . Attach 10 | 6 2 . 2 . Detach . | . . . . . Swap 15 | 1 2 3 8 1 Drop 24 | . 6 3 14 1 Fire 93 | . 40 7 37 9 Melee . | . . . . . Ram . | . . . . . Kick 1 | . 1 . . . Crush . | . . . . . Escape Stasis . | . . . . . Rewire . | . . . . . Trap . | . . . . . Miscellaneous . | . . . . . Route ------- -11/Junkyard -10/Materials (discovered 3 exits: *Mat x2 / *Min) -10/Mines -9/Materials (discovered 4 exits: [*Mat x2] / *Min x2) -9/Mines History --------- Turn | Location | Event 11 | -11/Junkyard | Discovered new exit (range 16) 57 | -11/Junkyard | Entered Materials 169 | -10/Materials | Discovered new exit (range 7) 302 | -10/Materials | Build established: Mutant 389 | -10/Materials | Discovered new exit (range 11) 516 | -10/Materials | Discovered new exit (range 7) 543 | -10/Materials | Identified exit to Mines 613 | -10/Materials | Entered Mines 853 | -10/Mines | Escorted by a lone wolf Derelict 875 | -10/Mines | Learned location of Storage (-7) 912 | -10/Mines | Discovered new exit (range 9) 930 | -10/Mines | Entered Materials 930 | -9/Materials | Accompanied by 1 ally 930 | -9/Materials | Evolved 2 slots: Propulsion x1, Utility x1 1102 | -9/Materials | Discovered new exit (range 15) 1174 | -9/Materials | Identified exit to Mines 1175 | -9/Materials | Build established: Scavenger-Mutant 1362 | -9/Materials | Discovered new exit (range 18) 1942 | -9/Materials | Build established: Mutant 1942 | -9/Materials | Entered Mines 1945 | -9/Mines | Met a Derelict bent on vengeance 2043 | -9/Mines | Learned location of 1 exit from Lower Caves 2119 | -9/Mines | Assembled infested the area 2124 | -9/Mines | Assisted by a Guerilla fighting off Assembled 2185 | -9/Mines | Self-destructed Last Messages --------------- I've been tracking a group of Assembled to figure out where they're coming from, and they're closing on this area, come on!" 02129_ T9-0TF(h): "I'll hold them off! Go on ahead or try to find another way!" 02129_ HV Slug penetrates Pulverizer. 02129_ Pulverizer disabled. 02131_ HV Slug penetrates Wall. 02132_ T9-0TF(h) destroyed. 02143_ R-06 Scavenger knocked back. 02143_ K-01 Serf collects debris. 02147_ as-49616 sneak attacks. 02147_ U-05 Engineer system corrupted by crushing effect. 02147_ U-05 Engineer knocked back. 02148_ U-05 Engineer system terminally corrupted. 02148_ K-01 Serf collects debris. 02154_ Acquired 31 matter. 02154_ K-01 Serf destroyed. 02163_ Knocked back. 02179_ T-07 Excavator destroyed. 02185_ as-28690 destroyed. Map ----- +----------------------------------------------------+ | | | | | | | | | | | | | | | | | | | | | | | ?????????????????????????????????????????????????? | | ?????????????????????????????????????????????????? | | ?????????????????????????????????????????????????? | | ?????????????????????????????????????????????????? | | ?????????????????????####????????????????????????? | | ????????????????????## #????????????????????????? | | ???????????????????## #????????????????????????? | | ??????????????????## #????????????????????????? | | ?????????????????## #????????????????????????? | | ?????????????????# #????????????????????????? | | ?????????????????# #????????????????????????? | | ??????????????????# #####????????????????????? | | ???????????????????# ##??####?????????????? | | ????????????????????# #? ??????????????? | | ?????????????????????#aa @ # #????????????????? | | ?????????????????????# % #????????????????? | | ????????????????????## #####????????????????? | | ????????????????????# a ##???????????????????? | | ????????????????????#a #???????????????????? | | ???????????????????## ##??????????????????? | | ##????????????????## = ##?????????????????? | | ##??????????????## |% #### ?????????????? | | ##??????#??????# #????????????? | | ###### #??????# #####????????????? | | #??????## aa #????????????????? | | #??????##a a ##### #???????????????? | | #??????????## ##????# #???????????????? | | #????????### #?????? #??????????????? | | # ##???????## #?????? #?????????????? | | # ##???????## #??????? #?????????????? | | # ###?????## ##??????????#??????????????? | | # ##???## ########??????????????????????????? | | # ##### ##?????????????????????????????????? | | # ##??????????????????????????????????? | | ##??????????????????????????????????? | | [! #??????????????????????????????????? | | [ ######??????????????????????????????????? | | !####????????###????????????????????????????? | | ##??????????# ##???????????????????????????? | +----------------------------------------------------+ Best States ------------- Heat Dissipation 42 Energy Generation 14 Energy Capacity 265 Matter Stores 300 Matter Capacity 300 Sight Range 18 Terrain Scan Density 10 Evasion (%) 55 Item Schematics ----------------- None Robot Schematics ------------------ None Fabricated ------------ Nothing Alien Tech Used ----------------- None Achievements -------------- None Challenges ------------ None Game ------ Seed WeldingFlyingShielding Manual? 0 Play Time 00:18:55 Cumulative 35.8 hours Start 2023.10.09 @ 15:25:59 End 2023.10.09 @ 15:44:51 Sessions 1 Manual Loads 0 Difficulty Rogue Special Mode None Game No. 70 Rogue 67 Adventurer 3 Explorer 0 Win Type - Total 0 Types 0/0/0/0/0/0/0/0/0 Lore% 22 Gallery% 36 Achievement% 26 Wizard Run 0 Options --------- ASCII 0 Keyboard 0 Movement Mouse Keybinds 0 Fullscreen 2 Font 18/SmallcapsGlow Map View 76x50 Tactical HUD 1 Map Filters NONE Filters NONE Steam 1 RUN: 0c2dd24a-c2be-4727-90a4-36d15de5737f